[Event "Betsys MČR v online bleskovém šachu 2021"]
[Site "Chess.com"]
[Date "2021.04.17"]
[Round "1"]
[White "Countryside_58"]
[Black "maelic"]
[Result "1-0"]
[WhiteElo "2449"]
[BlackElo "1780"]
[TimeControl "180+1"]
[EndTime "9:08:26 PDT"]
[Termination "Uživatel Countryside_58 zvítězil po vzdání soupeře"]

1. h4 {[%clk 0:03:00.6]} 1... d5 {[%clk 0:02:57.8]} 2. h5 {[%clk 0:03:01.3]}
2... h6 {[%clk 0:02:57.9]} 3. d4 {[%clk 0:03:00.6]} 3... Nf6 {[%clk 0:02:56]} 4.
Nf3 {[%clk 0:03:00.9]} 4... Bg4 {[%clk 0:02:56]} 5. Ne5 {[%clk 0:03:00.3]} 5...
Bf5 {[%clk 0:02:49.2]} 6. c4 {[%clk 0:02:59.5]} 6... c6 {[%clk 0:02:42.7]} 7.
Qb3 {[%clk 0:02:57.5]} 7... Qb6 {[%clk 0:02:38.5]} 8. c5 {[%clk 0:02:57.5]} 8...
Qxb3 {[%clk 0:02:29.8]} 9. axb3 {[%clk 0:02:58.4]} 9... Bxb1 {[%clk 0:02:29.2]}
10. Rxb1 {[%clk 0:02:57.5]} 10... Nbd7 {[%clk 0:02:28.6]} 11. Bf4 {[%clk
0:02:56.6]} 11... Nxe5 {[%clk 0:02:27.1]} 12. Bxe5 {[%clk 0:02:56.5]} 12... Nd7
{[%clk 0:02:27.5]} 13. Bg3 {[%clk 0:02:56.4]} 13... e6 {[%clk 0:02:22.8]} 14. b4
{[%clk 0:02:54.9]} 14... a6 {[%clk 0:02:21.9]} 15. e3 {[%clk 0:02:53.7]} 15...
Be7 {[%clk 0:02:21.4]} 16. Bd3 {[%clk 0:02:52.7]} 16... Nf6 {[%clk 0:02:18.5]}
17. f3 {[%clk 0:02:51.7]} 17... O-O {[%clk 0:02:17]} 18. Ra1 {[%clk 0:02:50.7]}
18... Rfc8 {[%clk 0:02:01.9]} 19. Kd2 {[%clk 0:02:49.9]} 19... Bf8 {[%clk
0:02:00.8]} 20. Bf4 {[%clk 0:02:44.8]} 20... Nd7 {[%clk 0:01:52.5]} 21. g4
{[%clk 0:02:44.2]} 21... Be7 {[%clk 0:01:52]} 22. Rag1 {[%clk 0:02:40.5]} 22...
f6 {[%clk 0:01:51.7]} 23. Ra1 {[%clk 0:02:35.4]} 23... e5 {[%clk 0:01:50.6]} 24.
Bg3 {[%clk 0:02:34.1]} 24... Kf8 {[%clk 0:01:29.1]} 25. Bf5 {[%clk 0:02:33]}
25... Rd8 {[%clk 0:01:27.6]} 26. Kc3 {[%clk 0:02:32.7]} 26... exd4+ {[%clk
0:01:27.6]} 27. exd4 {[%clk 0:02:31.6]} 27... Kg8 {[%clk 0:01:26.4]} 28. Rhe1
{[%clk 0:02:28.3]} 28... Bf8 {[%clk 0:01:26.4]} 29. Be6+ {[%clk 0:02:25.3]}
29... Kh8 {[%clk 0:01:25]} 30. Bf7 {[%clk 0:02:24.9]} 30... f5 {[%clk
0:01:18.7]} 31. Bg6 {[%clk 0:02:22.8]} 31... fxg4 {[%clk 0:01:17.1]} 32. fxg4
{[%clk 0:02:22.9]} 32... Nf6 {[%clk 0:01:17.1]} 33. Bh4 {[%clk 0:02:23]} 33...
Rd7 {[%clk 0:01:09.2]} 34. g5 {[%clk 0:02:17.9]} 34... hxg5 {[%clk 0:01:01.4]}
35. Bxg5 {[%clk 0:02:18.8]} 35... Re7 {[%clk 0:01:00.5]} 36. Rf1 {[%clk
0:02:07.1]} 36... Ne4+ {[%clk 0:00:37]} 37. Bxe4 {[%clk 0:02:01.3]} 37... dxe4
{[%clk 0:00:30.6]} 38. Bxe7 {[%clk 0:01:56.3]} 38... Bxe7 {[%clk 0:00:31.5]} 39.
Rae1 {[%clk 0:01:54.3]} 39... Bf6 {[%clk 0:00:31.4]} 40. Rxe4 {[%clk 0:01:52.3]}
40... Rd8 {[%clk 0:00:32.3]} 41. Kc4 {[%clk 0:01:51.7]} 41... Rd5 {[%clk
0:00:33.2]} 42. Rh1 {[%clk 0:01:46.7]} 42... Kh7 {[%clk 0:00:33]} 43. Rg4 {[%clk
0:01:41.4]} 43... Kh6 {[%clk 0:00:29.1]} 44. Rg6+ {[%clk 0:01:40.5]} 44... Kh7
{[%clk 0:00:29.5]} 45. Rg4 {[%clk 0:01:41.1]} 45... Kh6 {[%clk 0:00:29.4]} 46.
Rf4 {[%clk 0:01:41.1]} 46... Rd7 {[%clk 0:00:22.3]} 47. Re4 {[%clk 0:01:34.1]}
47... Rd5 {[%clk 0:00:22]} 48. Rh3 {[%clk 0:01:28.3]} 48... Rd7 {[%clk
0:00:21.9]} 49. Rg3 {[%clk 0:01:22.6]} 49... Kh7 {[%clk 0:00:21.3]} 50. Reg4
{[%clk 0:01:13]} 50... Rd5 {[%clk 0:00:20.6]} 51. Rh3 {[%clk 0:01:12.6]} 51...
Kh6 {[%clk 0:00:20.7]} 52. Rg6+ {[%clk 0:01:11.3]} 52... Kh7 {[%clk 0:00:21.1]}
53. Rg4 {[%clk 0:01:11.6]} 53... Kh6 {[%clk 0:00:21]} 54. Kd3 {[%clk 0:01:11.3]}
54... Kh7 {[%clk 0:00:19.3]} 55. Ke3 {[%clk 0:01:10.8]} 55... Kh6 {[%clk
0:00:19.2]} 56. Re4 {[%clk 0:01:08.3]} 56... Kh7 {[%clk 0:00:18.5]} 57. Kd3
{[%clk 0:01:06.7]} 57... Kh6 {[%clk 0:00:18.6]} 58. Kc4 {[%clk 0:01:06.9]} 58...
Kh7 {[%clk 0:00:18.6]} 59. Rf3 {[%clk 0:01:06.9]} 59... Rxh5 {[%clk 0:00:17.5]}
60. Rxf6 {[%clk 0:01:06.8]} 60... gxf6 {[%clk 0:00:18.4]} 61. Re7+ {[%clk
0:01:07]} 61... Kg6 {[%clk 0:00:18.6]} 62. Rxb7 {[%clk 0:01:07.9]} 62... Rh2
{[%clk 0:00:18.5]} 63. Rb6 {[%clk 0:01:07.2]} 63... Rxb2 {[%clk 0:00:18.7]} 64.
Rxa6 {[%clk 0:01:07]} 64... Rc2+ {[%clk 0:00:19.1]} 65. Kd3 {[%clk 0:01:06.9]}
65... Rb2 {[%clk 0:00:19.5]} 66. Rb6 {[%clk 0:01:06]} 66... Kf5 {[%clk
0:00:19.1]} 67. Kc3 {[%clk 0:01:05.8]} 67... Rf2 {[%clk 0:00:18.9]} 68. Rxc6
{[%clk 0:01:04.9]} 68... Ke4 {[%clk 0:00:19.3]} 69. Re6+ {[%clk 0:01:03.6]}
69... Kd5 {[%clk 0:00:19.7]} 70. Rd6+ {[%clk 0:01:03]} 70... Ke4 {[%clk
0:00:20.2]} 71. b5 {[%clk 0:01:03.3]} 71... f5 {[%clk 0:00:20.1]} 72. b6 {[%clk
0:01:03.2]} 72... f4 {[%clk 0:00:19.9]} 73. b7 {[%clk 0:01:03.2]} 73... Rh2
{[%clk 0:00:18.9]} 74. b8=Q {[%clk 0:01:02.5]} 74... Rh3+ {[%clk 0:00:17.7]} 75.
Kc4 {[%clk 0:01:01.6]} 1-0

[Event "Betsys MČR v online bleskovém šachu 2021"]
[Site "Chess.com"]
[Date "2021.04.17"]
[Round "1"]
[White "Tomasbezdek07"]
[Black "OlifantCZ"]
[Result "1-0"]
[WhiteElo "1687"]
[BlackElo "2280"]
[TimeControl "180+1"]
[EndTime "9:08:27 PDT"]
[Termination "Uživatel Tomasbezdek07 zvítězil po vzdání soupeře"]

1. e4 {[%clk 0:03:00]} 1... e6 {[%clk 0:02:59.9]} 2. f4 {[%clk 0:02:58.8]} 2...
d5 {[%clk 0:02:57.4]} 3. e5 {[%clk 0:02:59.2]} 3... c5 {[%clk 0:02:57]} 4. Nf3
{[%clk 0:02:59.4]} 4... Nc6 {[%clk 0:02:57.4]} 5. c3 {[%clk 0:02:59.5]} 5... d4
{[%clk 0:02:56.2]} 6. Na3 {[%clk 0:02:59]} 6... a6 {[%clk 0:02:55.2]} 7. Nc2
{[%clk 0:02:57.6]} 7... dxc3 {[%clk 0:02:50.8]} 8. bxc3 {[%clk 0:02:56.4]} 8...
b5 {[%clk 0:02:49.8]} 9. d4 {[%clk 0:02:53]} 9... cxd4 {[%clk 0:02:48.5]} 10.
Ncxd4 {[%clk 0:02:51.5]} 10... Bb7 {[%clk 0:02:42]} 11. a4 {[%clk 0:02:42.4]}
11... bxa4 {[%clk 0:02:31.6]} 12. Qxa4 {[%clk 0:02:39.2]} 12... Qd7 {[%clk
0:02:22.5]} 13. Be3 {[%clk 0:02:24.9]} 13... Nge7 {[%clk 0:02:14.2]} 14. Be2
{[%clk 0:02:03.7]} 14... Nd5 {[%clk 0:02:13.4]} 15. Bd2 {[%clk 0:01:49.1]} 15...
Bc5 {[%clk 0:02:11.4]} 16. O-O {[%clk 0:01:33.7]} 16... O-O {[%clk 0:02:07.4]}
17. Kh1 {[%clk 0:01:30.4]} 17... Rfb8 {[%clk 0:01:53.4]} 18. Qc4 {[%clk
0:01:23]} 18... Qe7 {[%clk 0:01:38.4]} 19. Nxc6 {[%clk 0:01:13.9]} 19... Bxc6
{[%clk 0:01:38.1]} 20. Nd4 {[%clk 0:01:13.8]} 20... Bxd4 {[%clk 0:01:23.8]} 21.
Qxd4 {[%clk 0:01:09.2]} 21... a5 {[%clk 0:01:07.8]} 22. Bf3 {[%clk 0:00:58.5]}
22... Qc7 {[%clk 0:00:59.8]} 23. c4 {[%clk 0:00:52.7]} 23... Nb4 {[%clk
0:00:49.7]} 24. Bxb4 {[%clk 0:00:48.5]} 24... axb4 {[%clk 0:00:44]} 25. Qc5
{[%clk 0:00:33.3]} 25... Rxa1 {[%clk 0:00:18.7]} 26. Rxa1 {[%clk 0:00:31.4]}
26... b3 {[%clk 0:00:19.1]} 27. Qxc6 {[%clk 0:00:28.3]} 27... b2 {[%clk
0:00:18.5]} 28. Rb1 {[%clk 0:00:28.5]} 28... Qa5 {[%clk 0:00:17.3]} 29. Qe4
{[%clk 0:00:18.4]} 29... Qd2 {[%clk 0:00:16]} 30. Bd1 {[%clk 0:00:14.7]} 30...
Qf2 {[%clk 0:00:13.5]} 31. h3 {[%clk 0:00:11.3]} 31... g6 {[%clk 0:00:12.9]} 32.
Qf3 {[%clk 0:00:10.6]} 32... Qd2 {[%clk 0:00:12.2]} 33. Qe2 {[%clk 0:00:10.2]}
33... Qxf4 {[%clk 0:00:11.7]} 34. Qc2 {[%clk 0:00:10]} 34... Qd4 {[%clk
0:00:10.8]} 35. Kh2 {[%clk 0:00:10.2]} 35... Qxe5+ {[%clk 0:00:11]} 36. Kh1
{[%clk 0:00:10.8]} 36... Qd4 {[%clk 0:00:11.1]} 37. Bf3 {[%clk 0:00:10.1]} 37...
h6 {[%clk 0:00:09.3]} 38. c5 {[%clk 0:00:10.5]} 38... Rc8 {[%clk 0:00:08.5]} 39.
c6 {[%clk 0:00:08.8]} 39... e5 {[%clk 0:00:06.8]} 40. Qxb2 {[%clk 0:00:07.6]}
40... Qd6 {[%clk 0:00:03.7]} 41. Qb7 {[%clk 0:00:07.9]} 41... Rc7 {[%clk
0:00:03.9]} 42. Qb8+ {[%clk 0:00:07.7]} 42... Kg7 {[%clk 0:00:04.5]} 43. Rb7
{[%clk 0:00:04.4]} 1-0

[Event "Betsys MČR v online bleskovém šachu 2021"]
[Site "Chess.com"]
[Date "2021.04.17"]
[Round "1"]
[White "Klapuch05"]
[Black "karimaster100"]
[Result "0-1"]
[WhiteElo "1534"]
[BlackElo "2184"]
[TimeControl "180+1"]
[EndTime "9:08:28 PDT"]
[Termination "Uživatel karimaster100 zvítězil po vzdání soupeře"]

1. e4 {[%clk 0:02:59.3]} 1... c5 {[%clk 0:02:59.5]} 2. Nf3 {[%clk 0:02:59.1]}
2... d6 {[%clk 0:03:00.1]} 3. d4 {[%clk 0:02:58.7]} 3... cxd4 {[%clk 0:03:00.7]}
4. Nxd4 {[%clk 0:02:59.6]} 4... Nf6 {[%clk 0:03:00.7]} 5. Nc3 {[%clk 0:02:59.6]}
5... a6 {[%clk 0:03:01.3]} 6. Be2 {[%clk 0:02:53]} 6... e6 {[%clk 0:03:01.1]} 7.
Be3 {[%clk 0:02:52.7]} 7... Be7 {[%clk 0:03:01.5]} 8. Qd2 {[%clk 0:02:53.1]}
8... b5 {[%clk 0:02:59.1]} 9. a3 {[%clk 0:02:47.1]} 9... Bb7 {[%clk 0:02:58.7]}
10. f3 {[%clk 0:02:46.9]} 10... Nbd7 {[%clk 0:02:58.8]} 11. O-O-O {[%clk
0:02:46.8]} 11... Rc8 {[%clk 0:02:55.2]} 12. g4 {[%clk 0:02:46.7]} 12... Nb6
{[%clk 0:02:54.8]} 13. g5 {[%clk 0:02:45.9]} 13... Nfd7 {[%clk 0:02:54.9]} 14.
h4 {[%clk 0:02:45.6]} 14... Ne5 {[%clk 0:02:55.1]} 15. Rdg1 {[%clk 0:02:33.8]}
15... Nbc4 {[%clk 0:02:54]} 16. Bxc4 {[%clk 0:02:33]} 16... Nxc4 {[%clk
0:02:53.8]} 17. Qe2 {[%clk 0:02:32]} 17... Qc7 {[%clk 0:02:53.7]} 18. h5 {[%clk
0:02:20]} 18... Nxb2 {[%clk 0:02:52.8]} 19. Ndxb5 {[%clk 0:02:12.8]} 19... axb5
{[%clk 0:02:50.5]} 20. Qxb5+ {[%clk 0:02:11.5]} 20... Bc6 {[%clk 0:02:36.2]} 21.
Qxb2 {[%clk 0:02:11.1]} 21... Kd7 {[%clk 0:02:21.8]} 22. g6 {[%clk 0:01:50.2]}
22... hxg6 {[%clk 0:02:14.2]} 23. hxg6 {[%clk 0:01:46]} 23... Rxh1 {[%clk
0:02:12.9]} 24. Rxh1 {[%clk 0:01:41.8]} 24... Rb8 {[%clk 0:02:13]} 25. Qa1
{[%clk 0:01:11.9]} 25... fxg6 {[%clk 0:02:09]} 26. Rg1 {[%clk 0:00:56.6]} 26...
Bf6 {[%clk 0:02:01.5]} 27. Rxg6 {[%clk 0:00:52.8]} 27... Ba8 {[%clk 0:01:50.8]}
28. Rxf6 {[%clk 0:00:45.2]} 28... gxf6 {[%clk 0:01:49.2]} 29. Na4 {[%clk
0:00:40.2]} 29... Qc4 {[%clk 0:01:37.8]} 30. Nb6+ {[%clk 0:00:34.7]} 30... Rxb6
{[%clk 0:01:30.8]} 31. Bxb6 {[%clk 0:00:34.5]} 31... Qf1+ {[%clk 0:01:28.1]} 32.
Kb2 {[%clk 0:00:34.2]} 32... Qxf3 {[%clk 0:01:28.4]} 33. Qg1 {[%clk 0:00:18.3]}
33... Kc6 {[%clk 0:01:14.7]} 34. Bd4 {[%clk 0:00:16.3]} 34... e5 {[%clk
0:01:11.6]} 35. Ba7 {[%clk 0:00:12.8]} 35... Qxe4 {[%clk 0:00:58.6]} 36. Qb6+
{[%clk 0:00:12.2]} 36... Kd7 {[%clk 0:00:58.5]} 37. Qb5+ {[%clk 0:00:10.4]}
37... Bc6 {[%clk 0:00:51.6]} 38. Qb8 {[%clk 0:00:09.9]} 38... Qd5 {[%clk
0:00:46.1]} 39. Bb6 {[%clk 0:00:09.9]} 39... Qb5+ {[%clk 0:00:43.7]} 40. Kc1
{[%clk 0:00:09.7]} 40... Ke6 {[%clk 0:00:43.8]} 41. Qc8+ {[%clk 0:00:09]} 41...
Kd5 {[%clk 0:00:43]} 42. Qg8+ {[%clk 0:00:09]} 42... Ke4 {[%clk 0:00:35.7]} 43.
Qg4+ {[%clk 0:00:09.4]} 43... Kd5 {[%clk 0:00:33.7]} 44. Qf3+ {[%clk 0:00:08.3]}
44... Ke6 {[%clk 0:00:32.9]} 45. Qg4+ {[%clk 0:00:08.6]} 45... Kf7 {[%clk
0:00:32.4]} 46. Qh5+ {[%clk 0:00:08.5]} 46... Ke7 {[%clk 0:00:30.9]} 47. Qh7+
{[%clk 0:00:08.5]} 47... Ke6 {[%clk 0:00:31]} 48. Qg8+ {[%clk 0:00:08.7]} 48...
Kf5 {[%clk 0:00:29.3]} 49. Qh7+ {[%clk 0:00:08.5]} 49... Kf4 {[%clk 0:00:25.3]}
50. Qh4+ {[%clk 0:00:08.5]} 50... Kf5 {[%clk 0:00:22.1]} 51. Qh5+ {[%clk
0:00:08.8]} 51... Ke6 {[%clk 0:00:21.2]} 52. Qe8+ {[%clk 0:00:08.1]} 52... Bxe8
{[%clk 0:00:20]} 0-1

[Event "Betsys MČR v online bleskovém šachu 2021"]
[Site "Chess.com"]
[Date "2021.04.17"]
[Round "1"]
[White "Michelangelo111"]
[Black "jankrelina07"]
[Result "1-0"]
[WhiteElo "2126"]
[BlackElo "1472"]
[TimeControl "180+1"]
[EndTime "9:08:31 PDT"]
[Termination "Uživatel Michelangelo111 zvítězil na čas"]

1. Nf3 {[%clk 0:02:58.7]} 1... Nc6 {[%clk 0:02:46.5]} 2. g3 {[%clk 0:02:59.6]}
2... d6 {[%clk 0:02:43.9]} 3. d4 {[%clk 0:02:58.6]} 3... g6 {[%clk 0:02:44]} 4.
Bg2 {[%clk 0:02:58.1]} 4... Bg7 {[%clk 0:02:44.1]} 5. O-O {[%clk 0:02:58.1]}
5... Nf6 {[%clk 0:02:40.9]} 6. c4 {[%clk 0:02:57.2]} 6... O-O {[%clk 0:02:36.2]}
7. Nc3 {[%clk 0:02:56.6]} 7... Rb8 {[%clk 0:02:34.1]} 8. e4 {[%clk 0:02:54.8]}
8... Re8 {[%clk 0:02:32.8]} 9. h3 {[%clk 0:02:47.5]} 9... a6 {[%clk 0:02:23.5]}
10. d5 {[%clk 0:02:41.9]} 10... Ne5 {[%clk 0:02:06.4]} 11. Nxe5 {[%clk
0:02:40.7]} 11... dxe5 {[%clk 0:02:06]} 12. Be3 {[%clk 0:02:38.3]} 12... b6
{[%clk 0:02:03.1]} 13. Qe2 {[%clk 0:02:32.2]} 13... e6 {[%clk 0:01:56.5]} 14.
Rfd1 {[%clk 0:02:23.5]} 14... Qe7 {[%clk 0:01:50.1]} 15. a3 {[%clk 0:02:12.8]}
15... exd5 {[%clk 0:01:47.1]} 16. cxd5 {[%clk 0:02:09.8]} 16... Bb7 {[%clk
0:01:41.8]} 17. Rac1 {[%clk 0:02:04.9]} 17... Red8 {[%clk 0:01:40.5]} 18. b4
{[%clk 0:02:03.5]} 18... Ba8 {[%clk 0:01:28.4]} 19. Rc2 {[%clk 0:02:01.6]} 19...
c6 {[%clk 0:01:27.4]} 20. Rcd2 {[%clk 0:01:48.8]} 20... cxd5 {[%clk 0:01:26.9]}
21. exd5 {[%clk 0:01:47.5]} 21... Qd6 {[%clk 0:01:25.4]} 22. Bg5 {[%clk
0:01:40.9]} 22... Rd7 {[%clk 0:01:23.2]} 23. Bxf6 {[%clk 0:01:32.7]} 23... Bxf6
{[%clk 0:01:22]} 24. Ne4 {[%clk 0:01:32]} 24... Qe7 {[%clk 0:01:16.8]} 25. d6
{[%clk 0:01:03.7]} 25... Qd8 {[%clk 0:01:06.1]} 26. Nxf6+ {[%clk 0:00:58.2]}
26... Qxf6 {[%clk 0:01:04.7]} 27. Bxa8 {[%clk 0:00:59.1]} 27... Rxa8 {[%clk
0:01:04]} 28. Qe4 {[%clk 0:00:49.2]} 28... Rad8 {[%clk 0:00:58.3]} 29. Qc6
{[%clk 0:00:47]} 29... a5 {[%clk 0:00:34.2]} 30. b5 {[%clk 0:00:37.5]} 30... Qe6
{[%clk 0:00:30.6]} 31. Qxb6 {[%clk 0:00:34.9]} 31... a4 {[%clk 0:00:30.6]} 32.
Qc6 {[%clk 0:00:31.5]} 32... h5 {[%clk 0:00:19.5]} 33. h4 {[%clk 0:00:26.9]}
33... Qb3 {[%clk 0:00:18.9]} 34. Rd3 {[%clk 0:00:23.7]} 34... Qb2 {[%clk
0:00:17.9]} 35. b6 {[%clk 0:00:20.8]} 35... Kg7 {[%clk 0:00:15.6]} 36. Rd5
{[%clk 0:00:12.2]} 36... Qb3 {[%clk 0:00:14.8]} 37. R1d3 {[%clk 0:00:09.9]}
37... Qb1+ {[%clk 0:00:14.2]} 38. Kg2 {[%clk 0:00:09.6]} 38... e4 {[%clk
0:00:13.6]} 39. Re3 {[%clk 0:00:08.7]} 39... Kh7 {[%clk 0:00:08.8]} 40. Rd4
{[%clk 0:00:08.1]} 40... Qb2 {[%clk 0:00:04.1]} 41. Rexe4 {[%clk 0:00:06]} 41...
Qxa3 {[%clk 0:00:02.2]} 42. Rf4 {[%clk 0:00:03.6]} 1-0

[Event "Betsys MČR v online bleskovém šachu 2021"]
[Site "Chess.com"]
[Date "2021.04.17"]
[Round "1"]
[White "Loveforever_Pepi"]
[Black "masodj"]
[Result "0-1"]
[WhiteElo "2303"]
[BlackElo "1738"]
[TimeControl "180+1"]
[EndTime "9:08:33 PDT"]
[Termination "Uživatel masodj zvítězil na čas"]

1. e4 {[%clk 0:03:00.9]} 1... c5 {[%clk 0:02:58.6]} 2. d4 {[%clk 0:02:59.7]}
2... cxd4 {[%clk 0:02:57.8]} 3. c3 {[%clk 0:02:59.7]} 3... d3 {[%clk 0:02:55.9]}
4. Bxd3 {[%clk 0:02:59.1]} 4... Nc6 {[%clk 0:02:56]} 5. Nf3 {[%clk 0:02:58.6]}
5... d6 {[%clk 0:02:55.9]} 6. h3 {[%clk 0:02:58.1]} 6... Nf6 {[%clk 0:02:54.1]}
7. O-O {[%clk 0:02:57.9]} 7... g6 {[%clk 0:02:53.8]} 8. Qe2 {[%clk 0:02:57.7]}
8... Bg7 {[%clk 0:02:53.9]} 9. Rd1 {[%clk 0:02:58.3]} 9... O-O {[%clk
0:02:53.6]} 10. Bf4 {[%clk 0:02:53]} 10... Bd7 {[%clk 0:02:51.3]} 11. Nbd2
{[%clk 0:02:49]} 11... Rc8 {[%clk 0:02:46.7]} 12. Nf1 {[%clk 0:02:43.5]} 12...
a6 {[%clk 0:02:45.6]} 13. a4 {[%clk 0:02:42.5]} 13... Qb6 {[%clk 0:02:31.8]} 14.
Ne3 {[%clk 0:02:37.4]} 14... Rfe8 {[%clk 0:02:23.6]} 15. Nc4 {[%clk 0:02:09.2]}
15... Qd8 {[%clk 0:02:10.6]} 16. Be3 {[%clk 0:02:01.6]} 16... Qc7 {[%clk
0:01:37.4]} 17. Bb6 {[%clk 0:01:52.1]} 17... Qb8 {[%clk 0:01:37.1]} 18. Ne3
{[%clk 0:01:52]} 18... Be6 {[%clk 0:01:29.9]} 19. Nd4 {[%clk 0:01:23.6]} 19...
Nxd4 {[%clk 0:01:20.8]} 20. Bxd4 {[%clk 0:01:23.4]} 20... Nh5 {[%clk 0:01:08.5]}
21. Qf3 {[%clk 0:01:13.9]} 21... Bxd4 {[%clk 0:01:04.7]} 22. cxd4 {[%clk
0:01:13.5]} 22... Ng7 {[%clk 0:01:02.1]} 23. a5 {[%clk 0:01:09.5]} 23... Bb3
{[%clk 0:01:00.8]} 24. Rd2 {[%clk 0:00:56.7]} 24... Rc7 {[%clk 0:00:55.6]} 25.
Bf1 {[%clk 0:00:41.2]} 25... Rec8 {[%clk 0:00:53.7]} 26. d5 {[%clk 0:00:40.9]}
26... Qa7 {[%clk 0:00:35.2]} 27. Ra3 {[%clk 0:00:36.9]} 27... Bc2 {[%clk
0:00:33.3]} 28. Rc3 {[%clk 0:00:26.3]} 28... Rxc3 {[%clk 0:00:31.1]} 29. bxc3
{[%clk 0:00:27.2]} 29... Ba4 {[%clk 0:00:30.7]} 30. Nc4 {[%clk 0:00:19.5]} 30...
Bb5 {[%clk 0:00:29.1]} 31. Nb6 {[%clk 0:00:19.6]} 31... Rc7 {[%clk 0:00:28]} 32.
c4 {[%clk 0:00:18.1]} 32... Be8 {[%clk 0:00:27]} 33. Qe3 {[%clk 0:00:16.4]}
33... Qb8 {[%clk 0:00:26]} 34. g3 {[%clk 0:00:15.5]} 34... h6 {[%clk 0:00:25.6]}
35. h4 {[%clk 0:00:15.8]} 35... Kh7 {[%clk 0:00:25.5]} 36. Be2 {[%clk
0:00:14.6]} 36... Qd8 {[%clk 0:00:20.3]} 37. Kh2 {[%clk 0:00:14]} 37... h5
{[%clk 0:00:19.5]} 38. Qd4 {[%clk 0:00:13.1]} 38... Kg8 {[%clk 0:00:18]} 39. Bf3
{[%clk 0:00:12.1]} 39... Bd7 {[%clk 0:00:17.4]} 40. Rb2 {[%clk 0:00:11.8]} 40...
Rc5 {[%clk 0:00:17.1]} 41. Qd2 {[%clk 0:00:10]} 41... Bc8 {[%clk 0:00:15.3]} 42.
Bg2 {[%clk 0:00:09.5]} 42... Ne8 {[%clk 0:00:14.3]} 43. Bf1 {[%clk 0:00:07.7]}
43... Nf6 {[%clk 0:00:14.1]} 44. Bd3 {[%clk 0:00:06.8]} 44... Nd7 {[%clk
0:00:14.1]} 45. Nxd7 {[%clk 0:00:05.3]} 45... Qxd7 {[%clk 0:00:12.4]} 46. Rb6
{[%clk 0:00:03.8]} 46... Qc7 {[%clk 0:00:12]} 47. Qg5 {[%clk 0:00:02]} 47... Kg7
{[%clk 0:00:11]} 0-1

[Event "Betsys MČR v online bleskovém šachu 2021"]
[Site "Chess.com"]
[Date "2021.04.17"]
[Round "1"]
[White "prosinec"]
[Black "KJ327NR"]
[Result "0-1"]
[WhiteElo "1723"]
[BlackElo "2363"]
[TimeControl "180+1"]
[EndTime "9:08:37 PDT"]
[Termination "Uživatel KJ327NR zvítězil po vzdání soupeře"]

1. Nf3 {[%clk 0:02:58.7]} 1... Nf6 {[%clk 0:02:59]} 2. c4 {[%clk 0:02:57.8]}
2... g6 {[%clk 0:02:59.1]} 3. g3 {[%clk 0:02:57.4]} 3... Bg7 {[%clk 0:02:58.8]}
4. Bg2 {[%clk 0:02:57]} 4... O-O {[%clk 0:02:58.8]} 5. Nc3 {[%clk 0:02:56.6]}
5... d6 {[%clk 0:02:58.1]} 6. O-O {[%clk 0:02:56]} 6... c6 {[%clk 0:02:57.9]} 7.
d4 {[%clk 0:02:55.6]} 7... Bf5 {[%clk 0:02:57.1]} 8. Re1 {[%clk 0:02:54.3]} 8...
Ne4 {[%clk 0:02:52.2]} 9. Nh4 {[%clk 0:02:45.7]} 9... Nxc3 {[%clk 0:02:50.8]}
10. bxc3 {[%clk 0:02:46.6]} 10... Be6 {[%clk 0:02:50.1]} 11. Qd3 {[%clk
0:02:37.9]} 11... d5 {[%clk 0:02:25.1]} 12. cxd5 {[%clk 0:02:24.3]} 12... cxd5
{[%clk 0:02:24.6]} 13. e4 {[%clk 0:02:15]} 13... dxe4 {[%clk 0:01:56.6]} 14.
Bxe4 {[%clk 0:02:14.6]} 14... Nc6 {[%clk 0:01:31.8]} 15. Be3 {[%clk 0:01:55.8]}
15... Bd5 {[%clk 0:01:26.9]} 16. Rab1 {[%clk 0:01:42.2]} 16... Bxe4 {[%clk
0:01:08.7]} 17. Qxe4 {[%clk 0:01:42]} 17... Qd7 {[%clk 0:01:08.3]} 18. Bf4
{[%clk 0:01:25.6]} 18... e6 {[%clk 0:01:01]} 19. Nf3 {[%clk 0:01:22.6]} 19...
Rac8 {[%clk 0:00:58.1]} 20. Rec1 {[%clk 0:01:17.5]} 20... Rfd8 {[%clk 0:00:53]}
21. Ne5 {[%clk 0:01:15.8]} 21... Nxe5 {[%clk 0:00:42.3]} 22. Bxe5 {[%clk
0:01:15.3]} 22... b6 {[%clk 0:00:34.4]} 23. Bxg7 {[%clk 0:01:14.1]} 23... Kxg7
{[%clk 0:00:34.1]} 24. Qe5+ {[%clk 0:00:58.5]} 24... Kg8 {[%clk 0:00:33.7]} 25.
Qe4 {[%clk 0:00:47.1]} 25... Qd5 {[%clk 0:00:33.1]} 26. Qxd5 {[%clk 0:00:39]}
26... Rxd5 {[%clk 0:00:32.5]} 27. Kf1 {[%clk 0:00:29.7]} 27... Ra5 {[%clk
0:00:19.4]} 28. Rb2 {[%clk 0:00:27.3]} 28... Kf8 {[%clk 0:00:17.6]} 29. Ke2
{[%clk 0:00:26.8]} 29... Ke7 {[%clk 0:00:17.9]} 30. Kd3 {[%clk 0:00:20.3]} 30...
Ra3 {[%clk 0:00:17.8]} 31. Rbc2 {[%clk 0:00:19.1]} 31... Kd6 {[%clk 0:00:17.5]}
32. Ke4 {[%clk 0:00:19.1]} 32... b5 {[%clk 0:00:16.2]} 33. Kd3 {[%clk
0:00:15.3]} 33... Rc4 {[%clk 0:00:15.8]} 34. Rb2 {[%clk 0:00:14.3]} 34... a6
{[%clk 0:00:15.4]} 35. Rcc2 {[%clk 0:00:12.5]} 35... Kd5 {[%clk 0:00:15.4]} 36.
Rb3 {[%clk 0:00:12.2]} 36... Rca4 {[%clk 0:00:13]} 37. Rxa3 {[%clk 0:00:11.4]}
37... Rxa3 {[%clk 0:00:13.2]} 38. Rb2 {[%clk 0:00:11.1]} 38... Kc6 {[%clk
0:00:11.6]} 39. Rc2 {[%clk 0:00:09.6]} 39... a5 {[%clk 0:00:11.6]} 40. Rb2
{[%clk 0:00:09.5]} 40... b4 {[%clk 0:00:11.8]} 41. Rb3 {[%clk 0:00:05.8]} 41...
Rxa2 {[%clk 0:00:08.1]} 42. cxb4 {[%clk 0:00:05.4]} 42... axb4 {[%clk
0:00:08.5]} 43. Ke3 {[%clk 0:00:04.2]} 43... Kb5 {[%clk 0:00:08.1]} 44. Kf3
{[%clk 0:00:04]} 44... Kc4 {[%clk 0:00:08.2]} 45. Rb1 {[%clk 0:00:03.9]} 45...
b3 {[%clk 0:00:08.5]} 46. Rc1+ {[%clk 0:00:04]} 46... Kd3 {[%clk 0:00:08.5]} 47.
Rb1 {[%clk 0:00:04.9]} 47... b2 {[%clk 0:00:07.7]} 48. Re1 {[%clk 0:00:03.1]}
48... Ra1 {[%clk 0:00:07]} 49. Re3+ {[%clk 0:00:02.7]} 49... Kc4 {[%clk
0:00:07.3]} 0-1